fUSD/lending_fUSD_20250616
["ID","MTS","AMOUNT","RATE_DAILY","PERIOD"]
[366153421,1750089064320,-929.08,0.00016325,2]
[366153422,1750089064331,-904.955227,0.00016325,2]
[366153423,1750089064341,-549.66,0.00016325,2]
[366153424,1750089064352,-1199.22,0.00016325,2]
[366153425,1750089064362,-883.48,0.00016325,2]
[366153426,1750089064371,-47.26695724,0.00016325,2]
[366153427,1750089064383,-431.2,0.00016325,2]
[366153428,1750089065103,1048.74,0.00015996,2]
[366153429,1750089066150,490.0,0.00015997,2]
[366153430,1750089066317,125.81643024,0.00015996,2]
[366153431,1750089066345,364.18356976,0.00015996,2]
[366153432,1750089067047,490.0,0.00015996,2]
[366153433,1750089068136,528.44,0.00015997,2]
[366153434,1750089068812,490.0,0.00015996,2]
[366153435,1750089069307,495.65,0.00015996,2]
[366153436,1750089069684,168.0,0.00015764,2]
[366153437,1750089071019,490.0,0.00015997,2]
[366153438,1750089071391,490.0,0.00015996,2]
[366153439,1750089071789,583.36,0.00015996,2]
[366153440,1750089072625,2713.5,0.00015996,2]
[366153441,1750089073456,640.74,0.00015997,2]
[366153442,1750089073601,1547.36,0.00015997,2]
[366153443,1750089074465,490.0,0.00015996,2]
[366153444,1750089074671,201.31,0.0001538,2]
[366153445,1750089081674,627.53,0.00015996,2]
[366153446,1750089082066,493.1,0.00015996,2]
[366153447,1750089082592,4186.82643024,0.00015996,2]
[366153448,1750089082623,2127.97356976,0.00015996,2]
[366153449,1750089083374,827.99,0.00015997,2]
[366153450,1750089084290,5442.11,0.00015996,2]
[366153451,1750089086573,645.99,0.00015996,2]
[366153452,1750089086832,811.68,0.00015997,2]
[366153453,1750089090469,682.51,0.00015996,2]
[366153454,1750089090954,268.43811231,0.00015771,2]
[366153455,1750089091126,4193.30831793,0.00015996,2]
[366153456,1750089091156,728.71168207,0.00015996,2]
[366153457,1750089091583,847.83,0.00015996,2]
[366153458,1750089092687,1501.94,0.00015996,2]
[366153459,1750089093571,2436.74,0.00015996,2]
[366153460,1750089096797,2747.69,0.00015997,2]
[366153461,1750089097242,975.09,0.00015997,2]
[366153462,1750089098247,492.75,0.00015996,2]
[366153463,1750089099026,528.78037381,0.00015996,2]
[366153464,1750089101219,490.0,0.00015996,2]
[366153465,1750089101388,3544.99,0.00015996,2]
[366153466,1750089101549,705.47794412,0.00015996,2]
[366153467,1750089101576,633.09205588,0.00015996,2]
[366153468,1750089103441,1304.59,0.00015996,2]
[366153469,1750089105719,490.0,0.00015996,2]
[366153470,1750089106361,490.0,0.00015996,2]
[366153471,1750089106399,702.96,0.00015996,2]
[366153473,1750089111213,490.0,0.00015996,2]
[366153474,1750089111701,490.0,0.00015996,2]
[366153475,1750089113828,859.95,0.00015996,2]
[366153476,1750089114644,656.0,0.0002465,120]
[366153477,1750089115205,490.0,0.00015997,2]
[366153478,1750089116573,882.06,0.00015996,2]
[366153480,1750089119195,1855.6,0.00015996,2]
[366153481,1750089119330,541.89,0.00015996,2]
[366153482,1750089122026,564.04,0.00015996,2]
[366153484,1750089126850,2480.07,0.00015996,2]
[366153485,1750089126945,490.0,0.00015996,2]
[366153486,1750089129588,1829.43,0.00015996,2]
[366153487,1750089130953,406.31794412,0.00015996,2]
[366153488,1750089130986,83.68205588,0.00015996,2]
[366153490,1750089137446,1000.0,0.00015155,2]
[366153491,1750089137598,1000.0,0.00014467,2]
[366153492,1750089137832,2917.74,0.00015996,2]
[366153493,1750089138534,502.44,0.00015996,2]
[366153494,1750089139046,2732.05,0.00015996,2]
[366153495,1750089139409,890.31,0.00015996,2]
[366153496,1750089140791,490.0,0.00015996,2]
[366153497,1750089145055,1811.12,0.00015996,2]
[366153498,1750089147071,1269.85,0.00015996,2]
[366153499,1750089147627,2302.80794412,0.00015996,2]
[366153500,1750089147655,11394.27205588,0.00015996,2]
[366153501,1750089147746,490.0,0.00015996,2]
[366153502,1750089150423,775.9,0.00015996,2]
[366153505,1750089153911,490.0,0.00015996,2]
[366153506,1750089154561,490.0,0.00015996,2]
[366153507,1750089157463,1359.82794412,0.00015996,2]
[366153508,1750089157493,3774.91205588,0.00015996,2]
[366153510,1750089157573,299.9,0.0002465,120]
[366153511,1750089158086,565.43,0.00015996,2]
[366153512,1750089158148,490.0,0.00015996,2]
[366153513,1750089158918,1341.16,0.00015996,2]
[366153514,1750089162448,1531.15,0.00015996,2]
[366153515,1750089164670,500.0,0.00015068,2]
[366153516,1750089166299,1203.63,0.00015996,2]
[366153517,1750089166509,999.61,0.00015996,2]
[366153518,1750089166914,837.24,0.00015996,2]
[366153519,1750089167890,774.99,0.00015996,2]
[366153520,1750089169868,1080.78,0.00015996,2]
[366153521,1750089171268,1901.09794412,0.00015996,2]
[366153522,1750089171296,1606.85205588,0.00015996,2]
[366153523,1750089174006,3409.45,0.00015996,2]
[366153524,1750089174815,527.01,0.00015996,2]
[366153525,1750089179743,717.05,0.00015996,2]
[366153529,1750089182165,592.99,0.00015996,2]
[366153530,1750089182598,1644.41,0.00015996,2]
[366153531,1750089185808,2161.54,0.00015996,2]
[366153532,1750089185878,4340.69794412,0.00015996,2]
[366153533,1750089185909,5755.90205588,0.00015996,2]
[366153534,1750089186532,586.41,0.00015996,2]
[366153535,1750089187898,1737.11,0.00015996,2]
[366153536,1750089188257,396.44208191,0.00015996,2]
[366153537,1750089189300,1195.47,0.00015996,2]
[366153538,1750089190503,938.65,0.00015996,2]
[366153539,1750089191424,200.99998,0.0001577,2]
[366153540,1750089191768,762.63,0.00015143,2]
[366153541,1750089195471,869.54,0.00015996,2]
[366153542,1750089195634,490.0,0.00015996,2]
[366153543,1750089196237,990.61,0.00015996,2]
[366153544,1750089197605,1021.86,0.00015996,2]
[366153545,1750089198847,54.37588221,0.00015996,2]
[366153546,1750089198881,2178.47411779,0.00015996,2]
[366153547,1750089200366,1270.79,0.00015996,2]
[366153548,1750089200746,3161.05,0.00015131,2]
[366153549,1750089201270,6004.22,0.00015131,2]
[366153550,1750089205028,1538.61,0.00015996,2]
[366153551,1750089206045,846.85588221,0.00015996,2]
[366153552,1750089206074,447.14411779,0.00015996,2]
[366153553,1750089206277,12806.29,0.00015996,2]
[366153554,1750089208313,1081.24,0.00015996,2]
[366153556,1750089208660,588.69,0.00015996,2]
[366153557,1750089214583,76.63588221,0.00015996,2]
[366153558,1750089214611,807.07411779,0.00015996,2]
[366153559,1750089215329,490.0,0.00015996,2]
[366153560,1750089216979,771.48,0.00015996,2]
[366153561,1750089217020,711.63,0.00015996,2]
[366153562,1750089217761,200.0,0.00015122,7]
[366153563,1750089220645,1448.84,0.00015996,2]
[366153564,1750089221830,943.33,0.00015996,2]
[366153565,1750089223505,1004.66,0.00015996,2]
[366153566,1750089225253,1687.87,0.00015996,2]
[366153569,1750089228019,1032.56,0.00015996,2]
[366153570,1750089229775,490.0,0.00015996,2]
[366153571,1750089231971,1380.44,0.00015996,2]
[366153572,1750089232029,490.0,0.00015996,2]
[366153575,1750089234422,3542.11588221,0.00015996,2]
[366153576,1750089234485,9271.09411779,0.00015996,2]
[366153577,1750089236267,1184.91,0.00015996,2]
[366153578,1750089237357,3973.78,0.00015996,2]
[366153581,1750089239587,490.0,0.00015996,2]
[366153582,1750089242687,80.21588221,0.00015996,2]
[366153583,1750089242716,1195.21411779,0.00015996,2]
[366153584,1750089242811,663.2,0.00015996,2]
[366153586,1750089245518,800.0,0.00015068,2]
[366153588,1750089247707,1471.74,0.00015996,2]
[366153589,1750089248890,684.65,0.00015996,2]
[366153590,1750089251018,490.0,0.00015996,2]
[366153593,1750089252808,2606.75,0.00015996,2]
[366153594,1750089256418,1013.64,0.00015996,2]
[366153596,1750089258254,1239.25,0.00015996,2]
[366153599,1750089260333,677.74,0.00015996,2]
[366153600,1750089261308,1165.17,0.00015996,2]
[366153601,1750089264830,300.0,0.00015996,2]
[366153602,1750089267037,2692.64588221,0.00015996,2]
[366153603,1750089267064,3187.58411779,0.00015996,2]
[366153604,1750089267142,490.0,0.00015996,2]
[366153607,1750089268762,2265.52,0.00015996,2]
[366153608,1750089270117,2667.97,0.0001508,2]
[366153609,1750089273632,490.0,0.00015996,2]
[366153612,1750089274974,1328.41,0.00015996,2]
[366153613,1750089279533,4570.51588221,0.00015996,2]
[366153618,1750089303509,187.78,0.00015062,2]
[366153622,1750089307829,23900.0,0.00015064,2]
[366153623,1750089341345,201.0,0.00015338,2]
[366153624,1750089384128,500.0,0.00015068,2]
[366153625,1750089402095,201.0,0.00015338,2]
[366153626,1750089410774,200.0,0.00015038,2]
[366153627,1750089441306,-171.0,0.00015757,2]
[366153628,1750089441334,-300.0,0.0001589,2]
[366153629,1750089441360,-151.0,0.00015891,2]
[366153630,1750089441387,-151.0,0.00015892,2]
[366153631,1750089441414,-151.0,0.00015894,2]
[366153632,1750089441441,-172.5164107,0.00015895,2]
[366153633,1750089441468,-151.0,0.00015896,2]
[366153634,1750089441494,-151.0,0.00015897,2]
[366153635,1750089441519,-300.0,0.000159,2]
[366153636,1750089441547,-201.0,0.00015918,2]
[366153637,1750089441574,-1000.0,0.00015954,2]
[366153638,1750089441601,-300.0,0.00015994,2]
[366153639,1750089441628,-1200.0,0.00015995,2]
[366153640,1750089441655,-300.0,0.00015995,2]
[366153641,1750089441681,-300.0,0.00015995,2]
[366153642,1750089441708,-500.0,0.00015995,2]
[366153643,1750089441734,-235.43239541,0.00015995,2]
[366153644,1750089441759,-158.56807054,0.00015995,2]
[366153645,1750089441785,-500.0,0.00015995,2]
[366153646,1750089441813,-500.0,0.00015995,2]
[366153647,1750089441841,-251.17701298,0.00015995,2]
[366153648,1750089441871,-300.0,0.00015995,2]
[366153649,1750089441902,-28.13411779,0.00015996,2]
[366153650,1750089441929,-490.0,0.00015996,2]
[366153651,1750089441962,-1257.57,0.00015996,2]
[366153652,1750089441989,-779.60199258,0.00015996,2]
[366153653,1750089442030,-577.34800742,0.00015996,2]
[366153654,1750089442058,-5215.35,0.00015996,2]
[366153655,1750089442086,-490.37224064,0.00015996,2]
[366153656,1750089442115,-539.12,0.00015996,2]
[366153657,1750089442160,-2347.56,0.00015996,2]
[366153658,1750089442190,-650.06,0.00015996,2]
[366153659,1750089442218,-180.18975194,0.00015996,2]
[366153660,1750089442360,-2117.43024806,0.00015996,2]
[366153661,1750089442389,-1482.89,0.00015996,2]
[366153662,1750089442418,-1212.86,0.00015996,2]
[366153663,1750089442446,-490.0,0.00015996,2]
[366153664,1750089442476,-490.0,0.00015996,2]
[366153665,1750089442504,-490.0,0.00015996,2]
[366153666,1750089442532,-1399.16,0.00015996,2]
[366153667,1750089442563,-2317.65975194,0.00015996,2]
[366153668,1750089442622,-3734.02024806,0.00015996,2]
[366153669,1750089442650,-676.75,0.00015996,2]
[366153670,1750089442684,-1923.93,0.00015996,2]
[366153671,1750089442711,-490.0,0.00015996,2]
[366153672,1750089442741,-777.86,0.00015996,2]
[366153673,1750089442771,-2397.43975194,0.00015996,2]
[366153674,1750089442924,-2597.90024806,0.00015996,2]
[366153675,1750089442952,-802.12,0.00015996,2]
[366153676,1750089442981,-1753.2,0.00015996,2]
[366153677,1750089443009,-1282.8,0.00015996,2]
[366153678,1750089443037,-2633.2,0.00015996,2]
[366153679,1750089443067,-490.0,0.00015996,2]
[366153680,1750089443096,-440.77975194,0.00015996,2]
[366153681,1750089443135,-49.22024806,0.00015996,2]
[366153682,1750089443163,-2618.21,0.00015996,2]
[366153683,1750089443190,-797.26,0.00015996,2]
[366153684,1750089443223,-544.18,0.00015996,2]
[366153685,1750089443253,-824.12,0.00015996,2]
[366153686,1750089443282,-5167.00975194,0.00015996,2]
[366153687,1750089443332,-7959.36024806,0.00015996,2]
[366153688,1750089443814,-509.12,0.00015996,2]
[366153689,1750089443842,-1003.46,0.00015996,2]
[366153690,1750089443877,-528.05975194,0.00015996,2]
[366153691,1750089443930,-264.82024806,0.00015996,2]
[366153692,1750089443960,-4920.79,0.00015996,2]
[366153693,1750089443989,-830.34,0.00015996,2]
[366153694,1750089444017,-1153.47,0.00015996,2]
[366153695,1750089444046,-2830.57975194,0.00015996,2]
[366153696,1750089444162,-599.17024806,0.00015996,2]
[366153697,1750089444192,-9400.82975194,0.00015996,2]
[366153698,1750089444241,-3315.67024806,0.00015996,2]
[366153699,1750089444270,-490.0,0.00015996,2]
[366153700,1750089444302,-6194.32975194,0.00015996,2]
[366153701,1750089444346,-4010.70024806,0.00015996,2]
[366153702,1750089444374,-1186.95,0.00015996,2]
[366153703,1750089444405,-490.0,0.00015996,2]
[366153704,1750089444433,-300.0,0.00015996,2]
[366153705,1750089444462,-1118.65,0.00015996,2]
[366153706,1750089444491,-490.0,0.00015996,2]
[366153707,1750089444520,-2403.69975194,0.00015996,2]
[366153708,1750089444567,-130.86024806,0.00015996,2]
[366153709,1750089444596,-742.7,0.00015996,2]
[366153710,1750089444626,-1032.17,0.00015996,2]
[366153711,1750089444655,-996.4,0.00015996,2]
[366153712,1750089444683,-1240.08,0.00015996,2]
[366153713,1750089444713,-490.0,0.00015996,2]
[366153714,1750089444746,-2071.48,0.00015996,2]
[366153715,1750089444777,-832.28,0.00015996,2]
[366153716,1750089444806,-1388.47,0.00015996,2]
[366153717,1750089444835,-490.0,0.00015996,2]
[366153718,1750089444865,-490.0,0.00015996,2]
[366153719,1750089444900,-95.55975194,0.00015996,2]
[366153720,1750089445014,-831.09024806,0.00015996,2]
[366153721,1750089445045,-883.05,0.00015996,2]
[366153722,1750089445076,-7142.856,0.00015999,2]
[366153723,1750089445106,-207.4,0.00015999,2]
[366153724,1750089445358,490.0,0.00015996,2]
[366153725,1750089448858,151.0,0.00015899,2]
[366153726,1750089449434,294.60375194,0.00015996,2]
[366153727,1750089449463,195.39624806,0.00015996,2]
[366153728,1750089454772,9804.60375194,0.00015996,2]
[366153729,1750089454807,2474.71624806,0.00015996,2]
[366153730,1750089458767,841.84,0.00015083,2]
[366153731,1750089463106,676.22,0.00015996,2]
[366153732,1750089463979,490.0,0.00015996,2]
[366153734,1750089465822,1714.87,0.00015083,2]
[366153736,1750089467856,387.35353786,0.00015996,2]
[366153738,1750089469761,490.0,0.00015996,2]
[366153739,1750089469816,171.8,0.00012067,2]
[366153742,1750089473575,2498.13,0.00015996,2]
[366153743,1750089478270,255.07021408,0.00015996,2]
[366153744,1750089478304,234.92978592,0.00015996,2]
[366153745,1750089480615,810.12,0.00015996,2]
[366153746,1750089481815,1116.62,0.00015996,2]
[366153747,1750089489324,575.23,0.00015996,2]
[366153748,1750089492653,150.0,0.00015076,2]
[366153749,1750089499723,916.13,0.00015996,2]
[366153750,1750089505384,1205.17,0.00015996,2]
[366153751,1750089510038,674.42,0.00015996,2]
[366153752,1750089513708,2249.75,0.00015996,2]
[366153753,1750089518003,939.65,0.00015996,2]
[366153754,1750089521881,1127.98021408,0.00015996,2]
[366153755,1750089521919,293.11978592,0.00015996,2]
[366153756,1750089526465,150.0,0.00015981,2]
[366153757,1750089531542,933.65,0.00015996,2]
[366153758,1750089533345,1340.86,0.00015996,2]
[366153759,1750089541830,745.45,0.00015996,2]
[366153760,1750089543461,722.27,0.00015996,2]
[366153761,1750089552166,571.83,0.00015996,2]
[366153762,1750089552422,2523.48,0.00015996,2]
[366153763,1750089565314,2719.34021408,0.00015075,2]
[366153764,1750089565343,6978.89978592,0.00015075,2]
[366153765,1750089572245,490.0,0.00015996,2]
[366153766,1750089581384,1046.12,0.00015996,2]
[366153767,1750089591899,300.0,0.00016,2]
[366153768,1750089593408,694.26,0.00015996,2]
[366153771,1750089597791,490.72021408,0.00015068,2]
[366153772,1750089597822,9.27978592,0.00015068,2]
[366153773,1750089600808,9990.72021408,0.00015078,2]
[366153774,1750089600836,10000.0,0.00015078,2]
[366153775,1750089600865,10000.0,0.00015078,2]
[366153776,1750089600893,10000.0,0.00015078,2]
[366153777,1750089600925,1926.06978592,0.00015078,2]
[366153778,1750089602718,1113.86,0.00015996,2]
[366153781,1750089604755,2000.0,0.00016,2]
[366153782,1750089608325,4960.07021408,0.00015078,2]
[366153783,1750089608355,1459.41978592,0.00015078,2]
[366153784,1750089609000,200.0,0.00016,2]
[366153785,1750089619603,490.0,0.00015996,2]
[366153786,1750089623405,202.0,0.00024657,120]
[366153787,1750089624778,490.0,0.00015996,2]
[366153788,1750089627158,490.0,0.00015996,2]
[366153789,1750089631106,490.0,0.00015996,2]
[366153790,1750089637782,835.24,0.00015996,2]
[366153792,1750089641514,212.0,0.00015338,2]
[366153793,1750089646434,150.0,0.00015965,2]
[366153794,1750089646600,764.43,0.00015996,2]
[366153795,1750089657400,1112.86,0.00015996,2]
[366153796,1750089668215,490.0,0.00015996,2]
[366153797,1750089672583,1002.9,0.00015996,2]
[366153798,1750089682786,490.0,0.00015996,2]
[366153799,1750089691052,490.0,0.00015996,2]
[366153801,1750089695151,490.0,0.00015996,2]
[366153802,1750089701584,202.0,0.00015498,2]
[366153803,1750089701672,141.15021408,0.00015996,2]
[366153804,1750089701700,772.06978592,0.00015996,2]
[366153805,1750089713156,614.04,0.00015996,2]
[366153806,1750089723387,793.49,0.00015996,2]
[366153807,1750089732584,7142.856,0.00015994,2]
[366153808,1750089737794,677.54421408,0.00015996,2]
[366153809,1750089737824,13.13578592,0.00015996,2]
[366153810,1750089740309,207.4,0.00015994,2]
[366153811,1750089742359,1686.36,0.00015071,2]
[366153812,1750089750352,162.49,0.00015071,2]
[366153814,1750089761249,250.0,0.00015071,2]
[366153815,1750089763643,490.0,0.00015996,2]
[366153816,1750089774612,490.0,0.00015996,2]
[366153817,1750089778849,300.0,0.00016,2]
[366153818,1750089778949,600.0,0.00016,2]
[366153819,1750089781838,243.0,0.00016,2]
[366153820,1750089782891,300.0,0.00016,2]
[366153821,1750089803319,2376.52,0.00015078,2]
[366153822,1750089803535,2376.52,0.00015082,2]
[366153823,1750089803955,504.57421408,0.00015086,2]
[366153824,1750089803988,1871.94578592,0.00015086,2]
[366153825,1750089804234,2376.52,0.0001509,2]
[366153826,1750089804455,2376.52,0.00015094,2]
[366153827,1750089804655,2376.52,0.00015098,2]
[366153828,1750089804853,998.49421408,0.00015102,2]
[366153829,1750089804884,1378.02578592,0.00015102,2]
[366153830,1750089805065,2376.52,0.00015106,2]
[366153831,1750089805298,2376.52,0.0001511,2]
[366153832,1750089805515,2376.52,0.00015114,2]
[366153833,1750089805928,1492.41421408,0.00015118,2]
[366153834,1750089805958,884.10578592,0.00015118,2]
[366153835,1750089806148,2376.52,0.00015122,2]
[366153836,1750089806365,2376.52,0.00015126,2]
[366153837,1750089806570,2376.52,0.0001513,2]
[366153838,1750089806779,1986.33421408,0.00015134,2]
[366153839,1750089806809,390.18578592,0.00015134,2]
[366153840,1750089806991,2376.52,0.00015138,2]
[366153841,1750089807210,2376.52,0.00015142,2]
[366153842,1750089807612,2376.52,0.00015146,2]
[366153843,1750089807828,2376.52,0.0001515,2]
[366153844,1750089808032,103.73421408,0.00015154,2]
[366153845,1750089808063,2272.78578592,0.00015154,2]
[366153846,1750089814608,500.0,0.00015068,2]
[366153847,1750089819531,1000.0,0.00015079,2]
[366153849,1750089860149,2751.0,0.00015076,2]
[366153850,1750089885342,500.0,0.00015075,2]
[366153851,1750089891451,868.22992952,0.00015902,2]
[366153852,1750089892710,227.46,0.00013699,2]
[366153854,1750089901637,1200.0,0.00016,2]
[366153855,1750089906802,200.0,0.00015076,2]
[366153857,1750089952407,300.0,0.00016,2]
[366153858,1750089962898,180.52428456,0.00016,2]
[366153859,1750089962926,215.47571544,0.00016,2]
[366153861,1750090001883,201.0,0.00015498,2]
[366153862,1750090018903,300.0,0.00016,2]
[366153863,1750090024849,151.0,0.00015995,2]
[366153864,1750090025613,207.4,0.00015995,2]
[366153865,1750090025648,7142.856,0.00015995,2]
[366153866,1750090026008,151.0,0.00015995,2]
[366153867,1750090028086,500.0,0.00015995,2]
[366153868,1750090028338,500.0,0.00015995,2]
[366153869,1750090028386,151.0,0.00015995,2]
[366153870,1750090028714,480.26828456,0.00015995,2]
[366153871,1750090028742,19.73171544,0.00015995,2]
[366153872,1750090028803,500.0,0.00015995,2]
[366153873,1750090028930,500.0,0.00015995,2]
[366153874,1750090029318,500.0,0.00015995,2]
[366153875,1750090029394,500.0,0.00015995,2]
[366153876,1750090029542,500.0,0.00015995,2]
[366153877,1750090029978,500.0,0.00015995,2]
[366153878,1750090030047,548.55434929,0.00015995,2]
[366153879,1750090030177,500.0,0.00015995,2]
[366153880,1750090030457,500.0,0.00015068,2]
[366153881,1750090030615,500.0,0.00015995,2]
[366153882,1750090030662,151.0,0.00015954,2]
[366153883,1750090030814,500.0,0.00015995,2]
[366153884,1750090031282,500.0,0.00015995,2]
[366153885,1750090031427,500.0,0.00015995,2]
[366153886,1750090032894,500.0,0.00015995,2]
[366153887,1750090033035,500.0,0.00015995,2]
[366153888,1750090033142,500.0,0.00015995,2]
[366153889,1750090033191,500.0,0.00015995,2]
[366153890,1750090033273,500.0,0.00015995,2]
[366153891,1750090033350,500.0,0.00015995,2]
[366153892,1750090033614,280.71393527,0.00015995,2]
[366153893,1750090033643,219.28606473,0.00015995,2]
[366153894,1750090033778,500.0,0.00015995,2]
[366153895,1750090033885,500.0,0.00015995,2]
[366153896,1750090034261,500.0,0.00015995,2]
[366153897,1750090034421,500.0,0.00015995,2]
[366153898,1750090034522,500.0,0.00015995,2]
[366153899,1750090034947,500.0,0.00015995,2]
[366153900,1750090035103,500.0,0.00015995,2]
[366153901,1750090035178,500.0,0.00015995,2]
[366153902,1750090035608,500.0,0.00015995,2]
[366153903,1750090035759,500.0,0.00015995,2]
[366153904,1750090035919,151.0,0.00015995,2]
[366153905,1750090036244,500.0,0.00015995,2]
[366153906,1750090036292,500.0,0.00015995,2]
[366153907,1750090036368,500.0,0.00015995,2]
[366153908,1750090036644,151.0,0.00015995,2]
[366153909,1750090036948,500.0,0.00015995,2]
[366153910,1750090036983,500.0,0.00015995,2]
[366153911,1750090037018,500.0,0.00015995,2]
[366153912,1750090037305,151.0,0.00015995,2]
[366153913,1750090037590,500.0,0.00015995,2]
[366153914,1750090037632,500.0,0.00015995,2]
[366153915,1750090037664,327.71393527,0.00015995,2]
[366153916,1750090037689,172.28606473,0.00015995,2]
[366153917,1750090037996,151.0,0.00015995,2]
[366153918,1750090038232,500.0,0.00015995,2]
[366153919,1750090038287,500.0,0.00015995,2]
[366153920,1750090038332,500.0,0.00015995,2]
[366153921,1750090038649,151.0,0.00015995,2]
[366153922,1750090039239,668.65185757,0.00015995,2]
[366153923,1750090039286,500.0,0.00015995,2]
[366153924,1750090039387,151.0,0.00015995,2]
[366153925,1750090039961,500.0,0.00015995,2]
[366153926,1750090040035,259.45983764,0.00015995,2]
[366153927,1750090040582,500.0,0.00015995,2]
[366153928,1750090041230,500.0,0.00015995,2]
[366153929,1750090041929,500.0,0.00015995,2]
[366153930,1750090043357,151.0,0.00015995,2]
[366153932,1750090047119,151.0,0.00015953,2]
[366153934,1750090052091,151.0,0.00015995,2]
[366153935,1750090052433,151.0,0.00015995,2]
[366153936,1750090053171,151.0,0.00015995,2]
[366153937,1750090053865,151.0,0.00015995,2]
[366153938,1750090054391,151.0,0.00015995,2]
[366153939,1750090055545,151.0,0.00015995,2]
[366153940,1750090056188,151.0,0.00015995,2]
[366153941,1750090056810,151.0,0.00015995,2]
[366153942,1750090057485,151.0,0.00015995,2]
[366153943,1750090058670,151.0,0.00015995,2]
[366153944,1750090059318,151.0,0.00015995,2]
[366153945,1750090060469,151.0,0.00015995,2]
[366153946,1750090061098,274.31503645,0.00015995,2]
[366153947,1750090061364,202.0,0.00015076,2]
[366153948,1750090061633,202.0,0.00015637,2]
[366153949,1750090081898,300.0,0.00016,2]
[366153950,1750090131338,168.0,0.00015748,2]
[366153951,1750090142967,550.0,0.00016,2]
[366153954,1750090165257,636.28720361,0.00015084,2]
[366153955,1750090165325,29.71279639,0.00015084,2]
[366153957,1750090187007,227.5452,0.00015916,2]
[366153958,1750090187080,198.45,0.00015084,2]
[366153959,1750090187871,3772.49,0.00015925,2]
[366153960,1750090199382,228.0124,0.00015916,2]
[366153961,1750090201344,300.0,0.00016,2]
[366153962,1750090201462,1200.0,0.00016,2]
[366153963,1750090201542,300.0,0.00016,2]
[366153964,1750090207380,200.0,0.00016,2]
[366153965,1750090231505,200.0,0.00015076,7]
[366153967,1750090232288,-300.0,0.00016001,2]
[366153968,1750090232299,-300.0,0.00016001,2]
[366153969,1750090232310,-303.68,0.00016001,2]
[366153970,1750090232320,-53.23278012,0.00016001,2]
[366153971,1750090232386,-252.54721988,0.00016001,2]
[366153972,1750090232396,-302.19,0.00016001,2]
[366153973,1750090232406,-302.56,0.00016001,2]
[366153974,1750090232415,-301.72,0.00016001,2]
[366153975,1750090232425,-300.93,0.00016001,2]
[366153976,1750090232435,-164.44591854,0.00016001,2]
[366153977,1750090232444,-287.11336534,0.00016001,2]